Workbook

Sheet ЖД
A1: Рейтинговая оценка железных дорог за I квартал 2018 г. (№ 2769р от 28 декабря 2017 г.) | AH1: 1кв | AI1: СЕТЬ
A2: Показатель | B2: Ед. изм | C2: Целевая метрика | D2: Фактические данные | T2: Целевые данные
D3: ОКТ | E3: КЛГ | F3: МСК | G3: ГОР | H3: СЕВ | I3: СКВ | J3: ЮВС | K3: ПРВ | L3: КБШ | M3: СВР | N3: ЮУР | O3: ЗСБ | P3: КРС | Q3: ВСБ | R3: ЗАБ | S3: ДВС | T3: ОКТ | U3: КЛГ | V3: МСК | W3: ГОР | X3: СЕВ | Y3: СКВ | Z3: ЮВС | AA3: ПРВ | AB3: КБШ | AC3: СВР | AD3: ЮУР | AE3: ЗСБ | AF3: КРС | AG3: ВСБ | AH3: ЗАБ | AI3: ДВС
A4: Выручка, начисленная по грузовым перевозкам | B4: млн. руб. | C4: План | D4: 31444.241 | E4: 992.62 | F4: 20849.516 | G4: 12406.931 | H4: 14939.897 | I4: 19107.519 | J4: 13603.083 | K4: 11350.178 | L4: 25255.339 | M4: 39985.168 | N4: 20061.48 | O4: 66249.298 | P4: 19245.602 | Q4: 17003.636 | R4: 3284.797 | S4: 29166.476 | T4: 31302.484 | U4: 963.498 | V4: 20760.06 | W4: 12378.968 | X4: 14607.621 | Y4: 18934.823 | Z4: 13466.267 | AA4: 10978.745 | AB4: 25064.123 | AC4: 39421.287 | AD4: 19801.907 | AE4: 64997.245 | AF4: 18679.695 | AG4: 16436.707 | AH4: 3108.858 | AI4: 28947.873
A5: Себестоимость перевозок | B5: коп./10 прив.тонно-км | C5: План | D5: 590.657 | E5: 1624.617 | F5: 670.133 | G5: 282.927 | H5: 395.834 | I5: 730.268 | J5: 441.676 | K5: 477.909 | L5: 352.226 | M5: 375.616 | N5: 283.178 | O5: 240.251 | P5: 327.776 | Q5: 326.179 | R5: 256.858 | S5: 487.844 | T5: 601.751 | U5: 1852.08 | V5: 677.071 | W5: 287.763 | X5: 399.027 | Y5: 746.928 | Z5: 448.722 | AA5: 487.869 | AB5: 361.752 | AC5: 380.109 | AD5: 291.051 | AE5: 242.954 | AF5: 339.978 | AG5: 335.602 | AH5: 259.686 | AI5: 484.465
A6: Финансовый результат по прочим видам деятельности | B6: млн. руб. | C6: План | D6: 205.764 | E6: 34.282 | F6: 1286.513 | G6: 280.963 | H6: 446.689 | I6: 309.044 | J6: 166.457 | K6: 127.345 | L6: 364.232 | M6: 852.419 | N6: 336.044 | O6: -188.148 | P6: 196.303 | Q6: 357.156 | R6: 249.226 | S6: 535.548 | T6: 59.536 | U6: -22.524 | V6: 1234.91 | W6: 246.846 | X6: 416.43 | Y6: 207.994 | Z6: 111.759 | AA6: 110.393 | AB6: 346.421 | AC6: 745.06 | AD6: 269.676 | AE6: -311.347 | AF6: 153.102 | AG6: 274.372 | AH6: 183.663 | AI6: 485.315
A7: Дебиторская задолженность | B7: млн. руб. | C7: План | D7: 7222.884 | E7: 989.492 | F7: 5579.025 | G7: 1541.048 | H7: 6955.312 | I7: 4926.899 | J7: 5188.767 | K7: 1345.969 | L7: 2552.38 | M7: 4325.774 | N7: 2966.209 | O7: 3192.497 | P7: 661.966 | Q7: 1464.617 | R7: 4494.826 | S7: 3599.355 | T7: 7367.465 | U7: 983.338 | V7: 6115.898 | W7: 1536.962 | X7: 7050.557 | Y7: 5005.857 | Z7: 5134.18 | AA7: 1328.121 | AB7: 2573.004 | AC7: 4325.283 | AD7: 3032.923 | AE7: 3268.043 | AF7: 698.301 | AG7: 1530.473 | AH7: 4438.076 | AI7: 3601.528
A8: Кредиторская задолженность | B8: млн. руб. | C8: План | D8: 7435.18 | E8: 268.389 | F8: 9871.928 | G8: 3518.762 | H8: 3995.315 | I8: 4186.032 | J8: 2482.24 | K8: 3421.699 | L8: 3219.368 | M8: 5354.303 | N8: 3390.97 | O8: 5867.572 | P8: 2660.387 | Q8: 4194.005 | R8: 3964.166 | S8: 8144.215 | T8: 7534.918 | U8: 245.339 | V8: 9455.504 | W8: 3481.784 | X8: 3952.005 | Y8: 4222.731 | Z8: 2376.042 | AA8: 3495.55 | AB8: 3215.426 | AC8: 5487.363 | AD8: 3501.039 | AE8: 5979.771 | AF8: 2578.87 | AG8: 4219.568 | AH8: 4084.53 | AI8: 7975.215
A9: Погрузка грузов | B9: тыс. тонн | C9: План | D9: 23984.9 | E9: 657.6 | F9: 16552.54 | G9: 7948.39 | H9: 15352.14 | I9: 16802.94 | J9: 22332.75 | K9: 9648.8 | L9: 17593.01 | M9: 33877 | N9: 19647.35 | O9: 77203.14 | P9: 22465.43 | Q9: 15322.18 | R9: 4214.96 | S9: 12040.07 | T9: 23397.6 | U9: 614.2 | V9: 17175 | W9: 7824 | X9: 14779 | Y9: 16588 | Z9: 22298.5 | AA9: 9345 | AB9: 17808 | AC9: 33790 | AD9: 19506 | AE9: 77871 | AF9: 22035 | AG9: 15061 | AH9: 4177.7 | AI9: 11955
A10: Отправление пассажиров | B10: тыс. чел. | C10: План | D10: 32639.855 | E10: 610.091 | F10: 167312.69 | G10: 8248.11 | H10: 2653.683 | I10: 6733.465 | J10: 2888.035 | K10: 1831.239 | L10: 3967.836 | M10: 6248.197 | N10: 1919.779 | O10: 8500.079 | P10: 1453.394 | Q10: 2723.875 | R10: 596.326 | S10: 2071.434 | T10: 31113.4 | U10: 583.1 | V10: 166294.5 | W10: 8277.4 | X10: 2598.3 | Y10: 6384.1 | Z10: 2863.4 | AA10: 1766.4 | AB10: 3841.5 | AC10: 6197.8 | AD10: 1886.7 | AE10: 8358.5 | AF10: 1375.3 | AG10: 2642.6 | AH10: 587.7 | AI10: 1917.4
A11: Выполнение расписания движения пассажирских поездов по прибытию на станции посадки (высадки) пассажиров с учетом опозданий при поступлении на дорогу и влияния дороги на опоздания по сети | B11: % | C11: План | D11: 0.985 | E11: 1 | F11: 0.981 | G11: 0.991 | H11: 0.991 | I11: 0.991 | J11: 0.987 | K11: 0.987 | L11: 0.991 | M11: 0.992 | N11: 0.994 | O11: 0.995 | P11: 0.985 | Q11: 0.991 | R11: 0.972 | S11: 0.992 | T11: 0.985 | U11: 0.985 | V11: 0.985 | W11: 0.985 | X11: 0.985 | Y11: 0.985 | Z11: 0.985 | AA11: 0.985 | AB11: 0.985 | AC11: 0.985 | AD11: 0.985 | AE11: 0.985 | AF11: 0.985 | AG11: 0.985 | AH11: 0.985 | AI11: 0.985
A12: Выполнение расписания движения пригородных поездов по прибытию в пункты назначения с учетом отклонений при поступлении на дорогу и влияния дороги на отклонения по сети | B12: % | C12: План | D12: 0.991 | E12: 0.996 | F12: 0.972 | G12: 0.994 | H12: 0.992 | I12: 0.996 | J12: 0.991 | K12: 0.991 | L12: 0.99 | M12: 0.992 | N12: 0.995 | O12: 0.997 | P12: 0.99 | Q12: 0.98 | R12: 0.962 | S12: 0.988 | T12: 0.986 | U12: 0.986 | V12: 0.986 | W12: 0.986 | X12: 0.986 | Y12: 0.986 | Z12: 0.986 | AA12: 0.986 | AB12: 0.986 | AC12: 0.986 | AD12: 0.986 | AE12: 0.986 | AF12: 0.986 | AG12: 0.986 | AH12: 0.986 | AI12: 0.986
A13: Доля грузовых отправок в груженых вагонах, проследовавших по инфраструктуре дороги в установленный срок | B13: % | C13: Факт пр. г. | D13: 0.892 | E13: 0.806 | F13: 0.869 | G13: 0.943 | H13: 0.904 | I13: 0.903 | J13: 0.768 | K13: 0.863 | L13: 0.923 | M13: 0.886 | N13: 0.97 | O13: 0.96 | P13: 0.905 | Q13: 0.911 | R13: 0.935 | S13: 0.867 | T13: 0.911 | U13: 0.639 | V13: 0.883 | W13: 0.943 | X13: 0.922 | Y13: 0.836 | Z13: 0.855 | AA13: 0.889 | AB13: 0.859 | AC13: 0.88 | AD13: 0.962 | AE13: 0.951 | AF13: 0.925 | AG13: 0.94 | AH13: 0.932 | AI13: 0.872
A14: Средняя участковая скорость движения грузового поезда | B14: км/ч | C14: План | D14: 37.5 | E14: 56 | F14: 42.1 | G14: 43.7 | H14: 39.5 | I14: 36.4 | J14: 46.1 | K14: 42.1 | L14: 45.7 | M14: 37.9 | N14: 53.3 | O14: 53.3 | P14: 48.1 | Q14: 47.7 | R14: 43.3 | S14: 38.8 | T14: 38.5 | U14: 54.9 | V14: 44.8 | W14: 44.2 | X14: 39.5 | Y14: 35.4 | Z14: 46.3 | AA14: 41.7 | AB14: 44.7 | AC14: 38 | AD14: 53 | AE14: 53 | AF14: 48.7 | AG14: 48.3 | AH14: 43.5 | AI14: 39.3
A15: Среднесуточная производительность локомотива рабочего парка грузового движения | B15: тыс.тонн-км брутто | C15: План | D15: 1802.17 | E15: 1844.02 | F15: 1885.68 | G15: 2713.32 | H15: 2047.87 | I15: 1503.24 | J15: 1830.74 | K15: 2087.8 | L15: 1706.32 | M15: 1931.72 | N15: 2690.97 | O15: 2924.87 | P15: 2315.38 | Q15: 2387.01 | R15: 2808.32 | S15: 2037.37 | T15: 1800 | U15: 1843 | V15: 1960 | W15: 2739 | X15: 2014 | Y15: 1467 | Z15: 1915 | AA15: 2045 | AB15: 1607 | AC15: 1936 | AD15: 2652 | AE15: 2895 | AF15: 2332 | AG15: 2480 | AH15: 2795 | AI15: 2016
A16: Балловая оценка состояния пути | B16: балл | C16: План | D16: 25 | E16: 15 | F16: 28 | G16: 26 | H16: 20 | I16: 33 | J16: 23 | K16: 30 | L16: 28 | M16: 33 | N16: 25 | O16: 20 | P16: 39 | Q16: 25 | R16: 58 | S16: 39 | T16: 27 | U16: 16 | V16: 30 | W16: 29 | X16: 23 | Y16: 34 | Z16: 26 | AA16: 30 | AB16: 30 | AC16: 36 | AD16: 30 | AE16: 23 | AF16: 35 | AG16: 27 | AH16: 60 | AI16: 38
A17: Уровень безопасности движения | B17: ед./млн.поездо-км. | C17: Факт пр. г. | D17: 0.6900650933 | E17: 0 | F17: 1.162655804 | G17: 0.8157342341 | H17: 0.8897683728 | I17: 0.584573638 | J17: 2.000174428 | K17: 0.9568126429 | L17: 0.6159968175 | M17: 1.020594522 | N17: 0.9102265571 | O17: 0.6469172058 | P17: 1.144380657 | Q17: 0.6296454069 | R17: 0.7029846251 | S17: 1.104828271 | T17: 1.083991955 | U17: 2.045584325 | V17: 1.38479363 | W17: 1.222285187 | X17: 1.583296847 | Y17: 0.8333769096 | Z17: 2.149941897 | AA17: 1.698322069 | AB17: 1.381696888 | AC17: 1.462821079 | AD17: 1.834589363 | AE17: 0.9457979419 | AF17: 1.507115747 | AG17: 0.3464035073 | AH17: 0.9887256846 | AI17: 1.298882181
A18: Интенсивность отказов 1 и 2 категории | B18: ед./млн.поездо-км. | C18: Факт пр. г. | D18: 30.39046671 | E18: 10.63707385 | F18: 24.34458887 | G18: 26.64731831 | H18: 27.75229925 | I18: 22.16065519 | J18: 30.20953102 | K18: 34.60472392 | L18: 23.45526344 | M18: 24.83446669 | N18: 26.68401012 | O18: 16.76593758 | P18: 25.49425796 | Q18: 21.74128552 | R18: 16.16864638 | S18: 51.08878315 | T18: 34.98071335 | U18: 22.50142757 | V18: 23.64040553 | W18: 23.39318039 | X18: 30.43448384 | Y18: 25.11242421 | Z18: 27.43029317 | AA18: 38.29716265 | AB18: 35.46355346 | AC18: 29.10080233 | AD18: 30.49385023 | AE18: 17.35817399 | AF18: 30.99416297 | AG18: 23.86335272 | AH18: 17.2718018 | AI18: 57.26542321
A19: Укомплектованность штата | B19: % | C19: План | D19: 0.992 | E19: 1.018 | F19: 0.986 | G19: 1 | H19: 1.005 | I19: 1.002 | J19: 1.001 | K19: 1.009 | L19: 1.005 | M19: 1 | N19: 1.002 | O19: 1.019 | P19: 1.012 | Q19: 0.994 | R19: 0.999 | S19: 0.994 | T19: 0.97 | U19: 0.97 | V19: 0.97 | W19: 0.97 | X19: 0.97 | Y19: 0.97 | Z19: 0.97 | AA19: 0.97 | AB19: 0.97 | AC19: 0.97 | AD19: 0.97 | AE19: 0.97 | AF19: 0.97 | AG19: 0.97 | AH19: 0.97 | AI19: 0.97
A22: Показатель | B22: Вес | D22: Коэффициент выполнения целевой метрики | T22: Балл
D23: ОКТ | E23: КЛГ | F23: МСК | G23: ГОР | H23: СЕВ | I23: СКВ | J23: ЮВС | K23: ПРВ | L23: КБШ | M23: СВР | N23: ЮУР | O23: ЗСБ | P23: КРС | Q23: ВСБ | R23: ЗАБ | S23: ДВС | T23: ОКТ | U23: КЛГ | V23: МСК | W23: ГОР | X23: СЕВ | Y23: СКВ | Z23: ЮВС | AA23: ПРВ | AB23: КБШ | AC23: СВР | AD23: ЮУР | AE23: ЗСБ | AF23: КРС | AG23: ВСБ | AH23: ЗАБ | AI23: ДВС
A24: Выручка, начисленная по грузовым перевозкам | B24: 0.1 | D24: 1.005 | E24: 1.03 | F24: 1.004 | G24: 1.002 | H24: 1.023 | I24: 1.009 | J24: 1.01 | K24: 1.034 | L24: 1.008 | M24: 1.014 | N24: 1.013 | O24: 1.019 | P24: 1.03 | Q24: 1.034 | R24: 1.057 | S24: 1.008 | T24: 3 | U24: 12.5 | V24: 2 | W24: 1 | X24: 11 | Y24: 6 | Z24: 7 | AA24: 14.5 | AB24: 4.5 | AC24: 9 | AD24: 8 | AE24: 10 | AF24: 12.5 | AG24: 14.5 | AH24: 16 | AI24: 4.5
A25: Себестоимость перевозок | B25: 0.1 | D25: 0.982 | E25: 0.877 | F25: 0.99 | G25: 0.983 | H25: 0.992 | I25: 0.978 | J25: 0.984 | K25: 0.98 | L25: 0.974 | M25: 0.988 | N25: 0.973 | O25: 0.989 | P25: 0.964 | Q25: 0.972 | R25: 0.989 | S25: 1.007 | T25: 9 | U25: 2 | V25: 15 | W25: 10 | X25: 16 | Y25: 7 | Z25: 11 | AA25: 8 | AB25: 6 | AC25: 12 | AD25: 5 | AE25: 13.5 | AF25: 3 | AG25: 4 | AH25: 13.5 | AI25: -1
A26: Финансовый результат по прочим видам деятельности | B26: 0.05 | D26: 2.456 | E26: 2.522 | F26: 0.042 | G26: 0.138 | H26: 0.073 | I26: 0.486 | J26: 0.489 | K26: 0.154 | L26: 0.051 | M26: 0.144 | N26: 0.246 | O26: 0.396 | P26: 0.282 | Q26: 0.302 | R26: 0.357 | S26: 0.104 | T26: 15 | U26: 16 | V26: 1 | W26: 5 | X26: 3 | Y26: 13 | Z26: 14 | AA26: 7 | AB26: 2 | AC26: 6 | AD26: 8 | AE26: 12 | AF26: 9 | AG26: 10 | AH26: 11 | AI26: 4
A27: Дебиторская задолженность | B27: 0.025 | D27: 0.98 | E27: 1.006 | F27: 0.912 | G27: 1.003 | H27: 0.986 | I27: 0.984 | J27: 1.011 | K27: 1.013 | L27: 0.992 | M27: 1 | N27: 0.978 | O27: 0.977 | P27: 0.948 | Q27: 0.957 | R27: 1.013 | S27: 0.999 | T27: 11 | U27: -2 | V27: 16 | W27: -1 | X27: 9 | Y27: 10 | Z27: -3 | AA27: -4.5 | AB27: 8 | AC27: 6 | AD27: 12 | AE27: 13 | AF27: 15 | AG27: 14 | AH27: -4.5 | AI27: 7
A28: Кредиторская задолженность | B28: 0.025 | D28: 0.987 | E28: 1.094 | F28: 1.044 | G28: 1.011 | H28: 1.011 | I28: 0.991 | J28: 1.045 | K28: 0.979 | L28: 1.001 | M28: 0.976 | N28: 0.969 | O28: 0.981 | P28: 1.032 | Q28: 0.994 | R28: 0.971 | S28: 1.021 | T28: 11 | U28: -1 | V28: 3 | W28: 12.5 | X28: 12.5 | Y28: 14 | Z28: 2 | AA28: 8 | AB28: 16 | AC28: 7 | AD28: 5 | AE28: 10 | AF28: 4 | AG28: 15 | AH28: 6 | AI28: 9
A29: Погрузка грузов | B29: 0.1 | D29: 1.025 | E29: 1.071 | F29: 0.964 | G29: 1.016 | H29: 1.039 | I29: 1.013 | J29: 1.002 | K29: 1.033 | L29: 0.988 | M29: 1.003 | N29: 1.007 | O29: 0.991 | P29: 1.02 | Q29: 1.017 | R29: 1.009 | S29: 1.007 | T29: 13 | U29: 16 | V29: -3 | W29: 10 | X29: 15 | Y29: 9 | Z29: 4 | AA29: 14 | AB29: -2 | AC29: 5 | AD29: 6.5 | AE29: -1 | AF29: 12 | AG29: 11 | AH29: 8 | AI29: 6.5
A30: Отправление пассажиров | B30: 0.05 | D30: 1.049 | E30: 1.046 | F30: 1.006 | G30: 0.996 | H30: 1.021 | I30: 1.055 | J30: 1.009 | K30: 1.037 | L30: 1.033 | M30: 1.008 | N30: 1.018 | O30: 1.017 | P30: 1.057 | Q30: 1.031 | R30: 1.015 | S30: 1.08 | T30: 13 | U30: 12 | V30: 2 | W30: -1 | X30: 8 | Y30: 14 | Z30: 4 | AA30: 11 | AB30: 10 | AC30: 3 | AD30: 7 | AE30: 6 | AF30: 15 | AG30: 9 | AH30: 5 | AI30: 16
A31: Выполнение расписания движения пассажирских поездов по прибытию на станции посадки (высадки) пассажиров с учетом опозданий при поступлении на дорогу и влияния дороги на опоздания по сети | B31: 0.05 | D31: 1 | E31: 1.015 | F31: 0.996 | G31: 1.006 | H31: 1.006 | I31: 1.006 | J31: 1.002 | K31: 1.002 | L31: 1.006 | M31: 1.007 | N31: 1.009 | O31: 1.01 | P31: 1 | Q31: 1.006 | R31: 0.987 | S31: 1.007 | T31: 3.5 | U31: 16 | V31: -1 | W31: 9 | X31: 9 | Y31: 9 | Z31: 5.5 | AA31: 5.5 | AB31: 9 | AC31: 12.5 | AD31: 14 | AE31: 15 | AF31: 3.5 | AG31: 9 | AH31: -2 | AI31: 12.5
A32: Выполнение расписания движения пригородных поездов по прибытию в пункты назначения с учетом отклонений при поступлении на дорогу и влияния дороги на отклонения по сети | B32: 0.05 | D32: 1.005 | E32: 1.01 | F32: 0.986 | G32: 1.008 | H32: 1.006 | I32: 1.01 | J32: 1.005 | K32: 1.005 | L32: 1.004 | M32: 1.006 | N32: 1.009 | O32: 1.011 | P32: 1.004 | Q32: 0.994 | R32: 0.976 | S32: 1.002 | T32: 8 | U32: 14.5 | V32: -2 | W32: 12 | X32: 10.5 | Y32: 14.5 | Z32: 8 | AA32: 8 | AB32: 5.5 | AC32: 10.5 | AD32: 13 | AE32: 16 | AF32: 5.5 | AG32: -1 | AH32: -3 | AI32: 4
A33: Доля грузовых отправок в груженых вагонах, проследовавших по инфраструктуре дороги в установленный срок | B33: 0.05 | D33: 0.979 | E33: 1.261 | F33: 0.984 | G33: 1 | H33: 0.98 | I33: 1.08 | J33: 0.898 | K33: 0.971 | L33: 1.075 | M33: 1.007 | N33: 1.008 | O33: 1.009 | P33: 0.978 | Q33: 0.969 | R33: 1.003 | S33: 0.994 | T33: -4 | U33: 16 | V33: -2 | W33: 9 | X33: -3 | Y33: 15 | Z33: -8 | AA33: -6 | AB33: 14 | AC33: 11 | AD33: 12 | AE33: 13 | AF33: -5 | AG33: -7 | AH33: 10 | AI33: -1
A34: Средняя участковая скорость движения грузового поезда | B34: 0.05 | D34: 0.974 | E34: 1.02 | F34: 0.94 | G34: 0.989 | H34: 1 | I34: 1.028 | J34: 0.996 | K34: 1.01 | L34: 1.022 | M34: 0.997 | N34: 1.006 | O34: 1.006 | P34: 0.988 | Q34: 0.988 | R34: 0.995 | S34: 0.987 | T34: -8 | U34: 14 | V34: -9 | W34: -4 | X34: 10 | Y34: 16 | Z34: -2 | AA34: 13 | AB34: 15 | AC34: -1 | AD34: 11.5 | AE34: 11.5 | AF34: -5.5 | AG34: -5.5 | AH34: -3 | AI34: -7
A35: Среднесуточная производительность локомотива рабочего парка грузового движения | B35: 0.05 | D35: 1.001 | E35: 1.001 | F35: 0.962 | G35: 0.991 | H35: 1.017 | I35: 1.025 | J35: 0.956 | K35: 1.021 | L35: 1.062 | M35: 0.998 | N35: 1.015 | O35: 1.01 | P35: 0.993 | Q35: 0.963 | R35: 1.005 | S35: 1.011 | T35: 7.5 | U35: 7.5 | V35: -5 | W35: -3 | X35: 13 | Y35: 15 | Z35: -6 | AA35: 14 | AB35: 16 | AC35: -1 | AD35: 12 | AE35: 10 | AF35: -2 | AG35: -4 | AH35: 9 | AI35: 11
A36: Балловая оценка состояния пути | B36: 0.1 | D36: 0.926 | E36: 0.938 | F36: 0.933 | G36: 0.897 | H36: 0.87 | I36: 0.971 | J36: 0.885 | K36: 1 | L36: 0.933 | M36: 0.917 | N36: 0.833 | O36: 0.87 | P36: 1.114 | Q36: 0.926 | R36: 0.967 | S36: 1.026 | T36: 9.5 | U36: 6 | V36: 7.5 | W36: 12 | X36: 14.5 | Y36: 4 | Z36: 13 | AA36: 3 | AB36: 7.5 | AC36: 11 | AD36: 16 | AE36: 14.5 | AF36: -2 | AG36: 9.5 | AH36: 5 | AI36: -1
A37: Уровень безопасности движения | B37: 0.1 | D37: 0.6365961392 | E37: 0 | F37: 0.839587776 | G37: 0.6673845372 | H37: 0.5619719223 | I37: 0.7014516857 | J37: 0.9303388298 | K37: 0.5633870398 | L37: 0.4458263045 | M37: 0.6976892362 | N37: 0.4961472988 | O37: 0.6839909214 | P37: 0.7593183595 | Q37: 1.817664642 | R37: 0.711000671 | S37: 0.8505992977 | T37: 11 | U37: 16 | V37: 4 | W37: 10 | X37: 13 | Y37: 7 | Z37: 2 | AA37: 12 | AB37: 15 | AC37: 8 | AD37: 14 | AE37: 9 | AF37: 5 | AG37: -1 | AH37: 6 | AI37: 3
A38: Интенсивность отказов 1 и 2 категории | B38: 0.05 | D38: 0.8687777863 | E38: 0.4727288444 | F38: 1.029787278 | G38: 1.139106264 | H38: 0.9118702125 | I38: 0.8824578226 | J38: 1.10132002 | K38: 0.9035845354 | L38: 0.6613906715 | M38: 0.8533945702 | N38: 0.8750620181 | O38: 0.9658814107 | P38: 0.8225502971 | Q38: 0.9110742222 | R38: 0.9361296848 | S38: 0.8921401481 | T38: 12 | U38: 16 | V38: -1 | W38: -3 | X38: 6 | Y38: 10 | Z38: -2 | AA38: 8 | AB38: 15 | AC38: 13 | AD38: 11 | AE38: 4 | AF38: 14 | AG38: 7 | AH38: 5 | AI38: 9
A39: Укомплектованность штата | B39: 0.05 | D39: 0.992 | E39: 1.018 | F39: 0.986 | G39: 1 | H39: 1.005 | I39: 1.002 | J39: 1.001 | K39: 1.009 | L39: 1.005 | M39: 1 | N39: 1.002 | O39: 1.019 | P39: 1.012 | Q39: 0.994 | R39: 0.999 | S39: 0.994 | T39: 11 | U39: 2 | V39: 10 | W39: 15.5 | X39: 5.5 | Y39: 7.5 | Z39: 9 | AA39: 4 | AB39: 5.5 | AC39: 15.5 | AD39: 7.5 | AE39: 1 | AF39: 3 | AG39: 12.5 | AH39: 14 | AI39: 12.5
N40: Балловая оценка | T40: =ROUND(SUMPRODUCT(T24:T39,$B$24:$B$39),3) -> 8 | U40: =ROUND(SUMPRODUCT(U24:U39,$B$24:$B$39),3) -> 10.875 | V40: 2.675 | W40: 6.563 | X40: 10.588 | Y40: 9.6 | Z40: 4.8 | AA40: 8.463 | AB40: 8.3 | AC40: 8.3 | AD40: 10.175 | AE40: 9.6 | AF40: 5.4 | AG40: 6.025 | AH40: 7.188 | AI40: 4.65
N41: Место | T41: =IFERROR((RANK(T40,$T40:$AI40,0)+(COUNTIF($T40:$AI40,T40)-1)/2),0) -> 9 | U41: =IFERROR((RANK(U40,$T40:$AI40,0)+(COUNTIF($T40:$AI40,U40)-1)/2),0) -> 1 | V41: 16 | W41: 11 | X41: 2 | Y41: 4.5 | Z41: 14 | AA41: 6 | AB41: 7.5 | AC41: 7.5 | AD41: 3 | AE41: 4.5 | AF41: 13 | AG41: 12 | AH41: 10 | AI41: 15
A42: Крушения | D42: 1 | E42: 0 | F42: 0 | G42: 0 | H42: 0 | I42: 0 | J42: 1 | K42: 0 | L42: 0 | M42: 0 | N42: 0 | O42: 0 | P42: 0 | Q42: 0 | R42: 0 | S42: 0 | T42: 2 | U42: 0 | V42: 0 | W42: 0 | X42: 0 | Y42: 0 | Z42: 2 | AA42: 0 | AB42: 0 | AC42: 0 | AD42: 0 | AE42: 0 | AF42: 0 | AG42: 0 | AH42: 0 | AI42: 0
A43: Аварии | D43: 0 | E43: 0 | F43: 0 | G43: 0 | H43: 0 | I43: 0 | J43: 0 | K43: 0 | L43: 0 | M43: 0 | N43: 0 | O43: 0 | P43: 0 | Q43: 0 | R43: 0 | S43: 0 | T43: 0 | U43: 0 | V43: 0 | W43: 0 | X43: 0 | Y43: 0 | Z43: 0 | AA43: 0 | AB43: 0 | AC43: 0 | AD43: 0 | AE43: 0 | AF43: 0 | AG43: 0 | AH43: 0 | AI43: 0
A44: Сходы (в поездной работе) | D44: 0 | E44: 0 | F44: 0 | G44: 1 | H44: 0 | I44: 0 | J44: 0 | K44: 0 | L44: 0 | M44: 2 | N44: 0 | O44: 0 | P44: 2 | Q44: 0 | R44: 2 | S44: 1 | T44: 0 | U44: 0 | V44: 0 | W44: 1 | X44: 0 | Y44: 0 | Z44: 0 | AA44: 0 | AB44: 0 | AC44: 2 | AD44: 0 | AE44: 0 | AF44: 2 | AG44: 0 | AH44: 2 | AI44: 1
A45: Столкновения (в поездной работе) | D45: 0 | E45: 0 | F45: 0 | G45: 0 | H45: 0 | I45: 0 | J45: 0 | K45: 0 | L45: 0 | M45: 1 | N45: 0 | O45: 0 | P45: 0 | Q45: 0 | R45: 0 | S45: 0 | T45: 0 | U45: 0 | V45: 0 | W45: 0 | X45: 0 | Y45: 0 | Z45: 0 | AA45: 0 | AB45: 0 | AC45: 1 | AD45: 0 | AE45: 0 | AF45: 0 | AG45: 0 | AH45: 0 | AI45: 0
A46: Случаи производственного травматизма со смертельным исходом | D46: 0 | E46: 0 | F46: 0 | G46: 0 | H46: 0 | I46: 0 | J46: 0 | K46: 0 | L46: 0 | M46: 0 | N46: 0 | O46: 0 | P46: 1 | Q46: 0 | R46: 0 | S46: 0 | T46: 0 | U46: 0 | V46: 0 | W46: 0 | X46: 0 | Y46: 0 | Z46: 0 | AA46: 0 | AB46: 0 | AC46: 0 | AD46: 0 | AE46: 0 | AF46: 2 | AG46: 0 | AH46: 0 | AI46: 0
N47: Итоговый штрафной балл | T47: =SUM(T42:T46) -> 2 | U47: 0 | V47: 0 | W47: 1 | X47: 0 | Y47: 0 | Z47: 2 | AA47: 0 | AB47: 0 | AC47: 3 | AD47: 0 | AE47: 0 | AF47: 4 | AG47: 0 | AH47: 2 | AI47: 1
N48: Итоговая балловая оценка | T48: =ROUND(T40-T47,3) -> 6 | U48: =ROUND(U40-U47,3) -> 10.875 | V48: 2.675 | W48: 5.563 | X48: 10.588 | Y48: 9.6 | Z48: 2.8 | AA48: 8.463 | AB48: 8.3 | AC48: 5.3 | AD48: 10.175 | AE48: 9.6 | AF48: 1.4 | AG48: 6.025 | AH48: 5.188 | AI48: 3.65
N49: Место | T49: =IFERROR((RANK(T48,$T48:$AI48,0)+(COUNTIF($T48:$AI48,T48)-1)/2),0) -> 9 | U49: =IFERROR((RANK(U48,$T48:$AI48,0)+(COUNTIF($T48:$AI48,U48)-1)/2),0) -> 1 | V49: =IFERROR((RANK(V48,$T48:$AI48,0)+(COUNTIF($T48:$AI48,V48)-1)/2),0) -> 15 | W49: =IFERROR((RANK(W48,$T48:$AI48,0)+(COUNTIF($T48:$AI48,W48)-1)/2),0) -> 10 | X49: =IFERROR((RANK(X48,$T48:$AI48,0)+(COUNTIF($T48:$AI48,X48)-1)/2),0) -> 2 | Y49: =IFERROR((RANK(Y48,$T48:$AI48,0)+(COUNTIF($T48:$AI48,Y48)-1)/2),0) -> 4.5 | Z49: =IFERROR((RANK(Z48,$T48:$AI48,0)+(COUNTIF($T48:$AI48,Z48)-1)/2),0) -> 14 | AA49: =IFERROR((RANK(AA48,$T48:$AI48,0)+(COUNTIF($T48:$AI48,AA48)-1)/2),0) -> 6 | AB49: =IFERROR((RANK(AB48,$T48:$AI48,0)+(COUNTIF($T48:$AI48,AB48)-1)/2),0) -> 7 | AC49: =IFERROR((RANK(AC48,$T48:$AI48,0)+(COUNTIF($T48:$AI48,AC48)-1)/2),0) -> 11 | AD49: =IFERROR((RANK(AD48,$T48:$AI48,0)+(COUNTIF($T48:$AI48,AD48)-1)/2),0) -> 3 | AE49: =IFERROR((RANK(AE48,$T48:$AI48,0)+(COUNTIF($T48:$AI48,AE48)-1)/2),0) -> 4.5 | AF49: =IFERROR((RANK(AF48,$T48:$AI48,0)+(COUNTIF($T48:$AI48,AF48)-1)/2),0) -> 16 | AG49: =IFERROR((RANK(AG48,$T48:$AI48,0)+(COUNTIF($T48:$AI48,AG48)-1)/2),0) -> 8 | AH49: =IFERROR((RANK(AH48,$T48:$AI48,0)+(COUNTIF($T48:$AI48,AH48)-1)/2),0) -> 12 | AI49: =IFERROR((RANK(AI48,$T48:$AI48,0)+(COUNTIF($T48:$AI48,AI48)-1)/2),0) -> 13
A53: Рейтинговая оценка железных дорог по перспективам оценки за I квартал 2018 г. (№ 2769р от 28 декабря 2017 г.)
A54: Перспектива оценки | B54: Вес | D54: Балл
D55: ОКТ | E55: КЛГ | F55: МСК | G55: ГОР | H55: СЕВ | I55: СКВ | J55: ЮВС | K55: ПРВ | L55: КБШ | M55: СВР | N55: ЮУР | O55: ЗСБ | P55: КРС | Q55: ВСБ | R55: ЗАБ | S55: ДВС
A56: Экономика и финансы | B56: =SUM(B24:B28) -> 0.3 | D56: =ROUND(SUMPRODUCT($B$24:$B$28,T$24:T$28),3) -> 2.5 | E56: =ROUND(SUMPRODUCT($B$24:$B$28,U$24:U$28),3) -> 2.175 | F56: 2.225 | G56: 1.638 | H56: 3.388 | I56: 2.55 | J56: 2.475 | K56: 2.688 | L56: 1.75 | M56: 2.725 | N56: 2.125 | O56: 3.525 | P56: 2.475 | Q56: 3.075 | R56: 3.538 | S56: 0.95
A57: Клиенты и рынки | B57: =SUM(B29:B33) -> 0.3 | D57: =ROUND(SUMPRODUCT($B$29:$B$33,T$29:T$33),3) -> 2.325 | E57: =ROUND(SUMPRODUCT($B$29:$B$33,U$29:U$33),3) -> 4.525 | F57: -0.45 | G57: 2.45 | H57: 2.725 | I57: 3.525 | J57: 0.875 | K57: 2.325 | L57: 1.725 | M57: 2.35 | N57: 2.95 | O57: 2.4 | P57: 2.15 | Q57: 1.6 | R57: 1.3 | S57: 2.225
A58: Технологические процессы | B58: =SUM(B34:B36) -> 0.2 | D58: =ROUND(SUMPRODUCT($B$34:$B$36,T$34:T$36),3) -> 0.925 | E58: =ROUND(SUMPRODUCT($B$34:$B$36,U$34:U$36),3) -> 1.675 | F58: 0.05 | G58: 0.85 | H58: 2.6 | I58: 1.95 | J58: 0.9 | K58: 1.65 | L58: 2.3 | M58: 1 | N58: 2.775 | O58: 2.525 | P58: -0.575 | Q58: 0.475 | R58: 0.8 | S58: 0.1
A59: Безопасность и надежность | B59: =SUM(B37:B38) -> 0.15 | D59: =ROUND(SUMPRODUCT($B$37:$B$38,T$37:T$38),3) -> 1.7 | E59: =ROUND(SUMPRODUCT($B$37:$B$38,U$37:U$38),3) -> 2.4 | F59: 0.35 | G59: 0.85 | H59: 1.6 | I59: 1.2 | J59: 0.1 | K59: 1.6 | L59: 2.25 | M59: 1.45 | N59: 1.95 | O59: 1.1 | P59: 1.2 | Q59: 0.25 | R59: 0.85 | S59: 0.75
A60: Персонал и развитие | B60: =SUM(B39) -> 0.05 | D60: =ROUND(SUMPRODUCT($B$39,T$39),3) -> 0.55 | E60: =ROUND(SUMPRODUCT($B$39,U$39),3) -> 0.1 | F60: 0.5 | G60: 0.775 | H60: 0.275 | I60: 0.375 | J60: 0.45 | K60: 0.2 | L60: 0.275 | M60: 0.775 | N60: 0.375 | O60: 0.05 | P60: 0.15 | Q60: 0.625 | R60: 0.7 | S60: 0.625
A62: Критические (барьерные) показатели | D62: =-SUM(ЖД!T42:T46) -> -2 | E62: =-SUM(ЖД!U42:U46) -> 0 | F62: =-SUM(ЖД!V42:V46) -> 0 | G62: =-SUM(ЖД!W42:W46) -> -1 | H62: =-SUM(ЖД!X42:X46) -> 0 | I62: =-SUM(ЖД!Y42:Y46) -> 0 | J62: =-SUM(ЖД!Z42:Z46) -> -2 | K62: =-SUM(ЖД!AA42:AA46) -> 0 | L62: =-SUM(ЖД!AB42:AB46) -> 0 | M62: =-SUM(ЖД!AC42:AC46) -> -3 | N62: =-SUM(ЖД!AD42:AD46) -> 0 | O62: =-SUM(ЖД!AE42:AE46) -> 0 | P62: =-SUM(ЖД!AF42:AF46) -> -4 | Q62: =-SUM(ЖД!AG42:AG46) -> 0 | R62: =-SUM(ЖД!AH42:AH46) -> -2 | S62: =-SUM(ЖД!AI42:AI46) -> -1
A64: Итоговая балловая оценка | D64: =T48 -> 6 | E64: =U48 -> 10.875 | F64: 2.675 | G64: 5.563 | H64: 10.588 | I64: 9.6 | J64: 2.8 | K64: 8.463 | L64: 8.3 | M64: 5.3 | N64: 10.175 | O64: 9.6 | P64: 1.4 | Q64: 6.025 | R64: 5.188 | S64: 3.65
A65: Место | D65: =T49 -> 9 | E65: =U49 -> 1 | F65: 15 | G65: 10 | H65: 2 | I65: 4.5 | J65: 14 | K65: 6 | L65: 7 | M65: 11 | N65: 3 | O65: 4.5 | P65: 16 | Q65: 8 | R65: 12 | S65: 13
N66: Место (УС) | T66: =T70 ->  | U66: =U70 ->  | Y66: 2 | AD66: 1
N67: п.1 | T67: =IF(T47>0,0,1) -> 0 | U67: =IF(U47>0,0,1) -> 1 | V67: 1 | W67: 0 | X67: 1 | Y67: 1 | Z67: 0 | AA67: 1 | AB67: 1 | AC67: 0 | AD67: 1 | AE67: 1 | AF67: 0 | AG67: 1 | AH67: 0 | AI67: 0
N68: п.2 | T68: =IF(T67>0,COUNTIF(T24:T39,"<0"),"") ->  | U68: =IF(U67>0,COUNTIF(U24:U39,"<0"),"") -> 2 | V68: 7 | X68: 1 | Y68: 0 | AA68: 2 | AB68: 1 | AD68: 0 | AE68: 1 | AG68: 5
N69: п.3 | T69: =IF(AND(LEN(T68),T68=MIN($T$68:$AI$68)),T48,"") ->  | U69: =IF(AND(LEN(U68),U68=MIN($T$68:$AI$68)),U48,"") ->  | Y69: 9.6 | AD69: 10.175
N70: п.4 | T70: =IFERROR((RANK(T69,$T69:$AI69,0)+(COUNTIF($T69:$AI69,T69)-1)/2),"") ->  | U70: =IFERROR((RANK(U69,$T69:$AI69,0)+(COUNTIF($T69:$AI69,U69)-1)/2),"") ->  | Y70: 2 | AD70: 1
